fUSD/lending_fUSD_20260421
["ID","MTS","AMOUNT","RATE_DAILY","PERIOD"]
[420916469,1776720645993,-306.069,0.000298,2]
[420916470,1776720646018,-29948.97847713,0.000298,2]
[420916471,1776720646033,-931.83149134,0.000298,2]
[420916473,1776720646471,-151.0,0.00013094,2]
[420916474,1776720646481,-75799.00000001,0.000298,2]
[420916475,1776720646492,-984.49388968,0.000298,2]
[420916476,1776720646503,-379.14,0.000298,2]
[420916477,1776720646513,-130791.19355146,0.000298,2]
[420916478,1776720646524,-793.1136,0.000298,2]
[420916479,1776720646539,-956.75230534,0.000298,2]
[420916480,1776720646659,-26043.30398392,0.000298,2]
[420916481,1776720646670,-6486.69601608,0.000298,2]
[420916482,1776720646681,-46249.356553,0.000298,2]
[420916483,1776720646717,-1439.22,0.000298,2]
[420916486,1776720646728,-537.60600006,0.000298,2]
[420916488,1776720646828,-1165.57730191,0.000298,2]
[420916490,1776720851494,162.16,8.2e-05,2]
[420916491,1776720862767,286.01,8.22e-05,2]
[420916492,1776720926220,163.6,8.22e-05,2]
[420916496,1776721436339,151.36,8.22e-05,2]
[420916498,1776721755813,150.14,8.22e-05,2]
[420916501,1776721832268,-324.32,8.233e-05,2]
[420916502,1776721832278,-206.68,8.233e-05,2]
[420916503,1776721832321,-50.32,8.233e-05,2]
[420916504,1776721832331,-486.49,8.266e-05,2]
[420916505,1776721832345,-310.46840171,8.299e-05,2]
[420916506,1776721832357,-338.18159829,8.299e-05,2]
[420916507,1776721832367,-187.46,8.332e-05,2]
[420916508,1776721832377,-810.82,8.332e-05,2]
[420916509,1776721832387,-180.18,8.332e-05,2]
[420916510,1776721832396,-194.6,8.354e-05,2]
[420916511,1776721832406,-212.16,8.354e-05,2]
[420916512,1776721832416,-1200.0,8.363e-05,2]
[420916513,1776721832426,-300.0,8.363e-05,2]
[420916514,1776721832436,-300.0,8.364e-05,2]
[420916515,1776721832445,-224.96,8.365e-05,2]
[420916516,1776721832455,-972.98,8.365e-05,2]
[420916517,1776721832465,-216.22,8.365e-05,2]
[420916518,1776721832475,-20352.1711,8.372e-05,2]
[420916519,1776721832484,-262.45,8.398e-05,2]
[420916520,1776721832493,-1135.14,8.398e-05,2]
[420916521,1776721832503,-252.26,8.398e-05,2]
[420916522,1776721832512,-674.9,8.431e-05,2]
[420916523,1776721832521,-150.0,8.471e-05,2]
[420916524,1776721832531,-150.0,8.892e-05,2]
[420916525,1776721832540,-1680.0,9.199e-05,2]
[420916526,1776721832550,-287.0,9.199e-05,2]
[420916527,1776721832560,-240.0,9.318e-05,2]
[420916528,1776721832569,-260.0,9.863e-05,2]
[420916529,1776721832578,-2062.0,0.00010119,2]
[420916530,1776721832587,-500.0,0.00011035,2]
[420916531,1776721832597,-500.0,0.00011035,2]
[420916532,1776721832606,-165.26815384,0.00011035,2]
[420916533,1776721832615,-500.0,0.00011035,2]
[420916534,1776721832625,-500.0,0.00011035,2]
[420916535,1776721832634,-500.0,0.00011035,2]
[420916536,1776721832644,-150.0,0.00011115,2]
[420916537,1776721832653,-150.0,0.00011115,2]
[420916538,1776721832662,-151.0,0.00011118,2]
[420916539,1776721832672,-151.0,0.00011124,2]
[420916540,1776721832681,-151.0,0.00011142,2]
[420916541,1776721832691,-996.0,0.00011542,2]
[420916542,1776721832700,-502.40033275,0.00011583,2]
[420916543,1776721832710,-562.81492935,0.00011583,2]
[420916544,1776721832719,-1000.0,0.00012,2]
[420916545,1776721832728,-1660.28,0.000122,2]
[420916547,1776721832738,-830.14,0.000122,2]
[420916549,1776721832751,-500.0,0.00012532,2]
[420916551,1776721832761,-500.0,0.00012692,2]
[420916552,1776721832771,-250.0,0.00013,2]
[420916553,1776721832780,-1500.0,0.00013335,2]
[420916554,1776721832790,-200.0,0.0001348,2]
[420916555,1776721832799,-500.0,0.00013698,2]
[420916556,1776721832808,-500.0,0.00013698,2]
[420916557,1776721832818,-500.0,0.00013698,2]
[420916558,1776721832827,-500.0,0.00013698,2]
[420916559,1776721832836,-500.0,0.00013698,2]
[420916560,1776721832846,-2349.21,0.0001372,2]
[420916561,1776721832855,-505.0,0.0001372,2]
[420916562,1776721832865,-1660.28,0.00014,2]
[420916563,1776721832874,-830.14,0.00014,2]
[420916564,1776721832884,-260.0,0.00014335,2]
[420916565,1776721832893,-160.0,0.00014802,2]
[420916566,1776721832903,-300.0,0.00015,2]
[420916567,1776721832912,-150.0,0.00015145,3]
[420916568,1776721832921,-505.0,0.00015419,3]
[420916569,1776721832930,-165.85,0.00015843,2]
[420916570,1776721832940,-500.21459105,0.00015897,2]
[420916571,1776721832949,-600.0,0.00015897,2]
[420916572,1776721832959,-500.0,0.00015897,2]
[420916573,1776721832968,-500.0,0.00016226,2]
[420916574,1776721832978,-516.40778139,0.00016226,2]
[420916575,1776721832988,-500.0,0.00016445,2]
[420916576,1776721832998,-165.85,0.00016715,2]
[420916577,1776721833007,-350.0,0.00017,2]
[420916578,1776721833017,-505.0,0.00017119,4]
[420916579,1776721833026,-500.54897623,0.0001752,2]
[420916580,1776721833036,-165.85,0.00017587,2]
[420916581,1776721833045,-2285.858,0.00017775,2]
[420916582,1776721833054,-5325.8395,0.00017775,2]
[420916583,1776721833064,-217.78,0.00017875,2]
[420916584,1776721833073,-217.78,0.00018149,2]
[420916585,1776721833083,-260.0,0.00018211,2]
[420916586,1776721833092,-602.0,0.00018247,2]
[420916587,1776721833101,-217.78,0.00018423,2]
[420916588,1776721833111,-165.85,0.00018458,2]
[420916589,1776721833121,-452.0,0.00018623,2]
[420916590,1776721833130,-1001.0,0.00018623,2]
[420916591,1776721833140,-416.0,0.00018623,2]
[420916592,1776721833149,-217.78,0.00018697,2]
[420916593,1776721833159,-505.0,0.00018818,6]
[420916594,1776721833169,-217.79,0.00018971,2]
[420916595,1776721833178,-400.0,0.00019,2]
[420916596,1776721833188,-500.0,0.00019052,2]
[420916597,1776721833206,-500.0,0.00019052,2]
[420916598,1776721833217,-500.0,0.00019052,2]
[420916599,1776721833226,-500.0,0.00019052,2]
[420916600,1776721833236,-500.0,0.00019052,2]
[420916601,1776721833245,-500.0,0.00019052,2]
[420916602,1776721833254,-500.0,0.00019052,2]
[420916603,1776721833264,-500.0,0.00019052,2]
[420916604,1776721833273,-500.0,0.00019052,2]
[420916605,1776721833283,-500.0,0.00019052,2]
[420916606,1776721833292,-500.0,0.00019052,2]
[420916607,1776721833302,-500.0,0.00019052,2]
[420916608,1776721833311,-500.0,0.00019052,2]
[420916609,1776721833320,-500.0,0.00019052,2]
[420916610,1776721833330,-500.0,0.00019052,2]
[420916611,1776721833340,-500.0,0.00019052,2]
[420916612,1776721833349,-500.0,0.00019052,2]
[420916613,1776721833359,-500.0,0.00019052,2]
[420916614,1776721833369,-500.0,0.00019052,2]
[420916615,1776721833379,-500.0,0.00019052,2]
[420916616,1776721833389,-640.29731322,0.00019052,2]
[420916617,1776721833399,-500.0,0.00019052,2]
[420916618,1776721833410,-500.0,0.00019052,2]
[420916619,1776721833419,-500.0,0.00019052,2]
[420916620,1776721833428,-500.0,0.00019052,2]
[420916621,1776721833438,-500.0,0.00019052,2]
[420916622,1776721833447,-500.0,0.00019052,2]
[420916623,1776721833457,-500.0,0.00019052,2]
[420916624,1776721833467,-500.0,0.00019052,2]
[420916625,1776721833476,-500.0,0.00019052,2]
[420916626,1776721833486,-500.0,0.00019052,2]
[420916627,1776721833496,-500.0,0.00019052,2]
[420916628,1776721833506,-500.0,0.00019052,2]
[420916629,1776721833516,-500.0,0.00019052,2]
[420916630,1776721833525,-500.0,0.00019052,2]
[420916631,1776721833534,-350.0,0.00019052,2]
[420916632,1776721833544,-500.0,0.00019052,2]
[420916633,1776721833553,-500.0,0.00019052,2]
[420916634,1776721833563,-500.0,0.00019052,2]
[420916635,1776721833572,-500.0,0.00019052,2]
[420916636,1776721833581,-500.0,0.00019052,2]
[420916637,1776721833591,-500.0,0.00019052,2]
[420916638,1776721833601,-500.0,0.00019052,2]
[420916639,1776721833610,-500.0,0.00019052,2]
[420916640,1776721833620,-500.0,0.00019052,2]
[420916641,1776721833630,-644.20806809,0.00019052,2]
[420916642,1776721833640,-264.18344069,0.00019052,2]
[420916643,1776721833651,-217.68449861,0.00019052,2]
[420916644,1776721833662,-62155.54,0.00019053,2]
[420916645,1776721833673,-185.93606301,0.000199,2]
[420916646,1776721833683,-160.0,0.0002,2]
[420916647,1776721833694,-583.0,0.0002,2]
[420916648,1776721833703,-174.0,0.0002,2]
[420916649,1776721833713,-156.0,0.0002,2]
[420916650,1776721833722,-158.0,0.0002,2]
[420916651,1776721833731,-236.0,0.0002,2]
[420916652,1776721833741,-464.0,0.0002,2]
[420916653,1776721833750,-274.44,0.00020228,30]
[420916654,1776721833761,-505.0,0.00020518,7]
[420916655,1776721833771,-185.93606299,0.00020989,2]
[420916656,1776721833780,-160.0,0.00021,2]
[420916657,1776721833790,-583.0,0.00021,2]
[420916658,1776721833799,-174.0,0.00021,2]
[420916659,1776721833808,-156.0,0.00021,2]
[420916660,1776721833817,-158.0,0.00021,2]
[420916661,1776721833831,-236.0,0.00021,2]
[420916662,1776721833840,-464.0,0.00021,2]
[420916663,1776721833850,-450.0,0.00021,2]
[420916664,1776721833859,-260.0,0.00021571,3]
[420916665,1776721833869,-912.0,0.00021762,7]
[420916666,1776721833879,-812.0,0.00021762,7]
[420916667,1776721833888,-623.0,0.00021762,7]
[420916668,1776721833897,-160.0,0.00022,2]
[420916669,1776721833907,-583.0,0.00022,2]
[420916670,1776721833916,-174.0,0.00022,2]
[420916671,1776721833926,-156.0,0.00022,2]
[420916672,1776721833936,-158.0,0.00022,2]
[420916673,1776721833945,-236.0,0.00022,2]
[420916674,1776721833954,-464.0,0.00022,2]
[420916675,1776721833964,-185.93606299,0.00022078,2]
[420916676,1776721833973,-505.0,0.00022217,9]
[420916677,1776721833983,-4765.68,0.00022509,2]
[420916678,1776721833992,-5530.0,0.000229,5]
[420916679,1776721834002,-160.0,0.00023,2]
[420916680,1776721834011,-583.0,0.00023,2]
[420916681,1776721834020,-174.0,0.00023,2]
[420916682,1776721834058,-156.0,0.00023,2]
[420916683,1776721834068,-158.0,0.00023,2]
[420916684,1776721834077,-236.0,0.00023,2]
[420916685,1776721834086,-464.0,0.00023,2]
[420916686,1776721834096,-500.0,0.00023,2]
[420916687,1776721834105,-185.93606299,0.00023167,2]
[420916688,1776721834115,-1660.28,0.000239,2]
[420916689,1776721834124,-830.14,0.000239,2]
[420916690,1776721834133,-505.0,0.00023917,10]
[420916691,1776721834143,-160.0,0.00024,2]
[420916692,1776721834152,-583.0,0.00024,2]
[420916693,1776721834162,-174.0,0.00024,2]
[420916694,1776721834171,-174.0,0.00024,2]
[420916695,1776721834181,-166.0,0.00024,2]
[420916696,1776721834191,-236.0,0.00024,2]
[420916697,1776721834200,-464.0,0.00024,2]
[420916698,1776721834210,-185.93606299,0.00024256,2]
[420916699,1776721834219,-260.0,0.00024484,5]
[420916700,1776721834229,-224.2,0.00024658,2]
[420916701,1776721834238,-150.0,0.00024658,2]
[420916702,1776721834248,-500.0,0.00024685,2]
[420916703,1776721834257,-166.0,0.00025,2]
[420916704,1776721834270,-599.0,0.00025,2]
[420916705,1776721834280,-180.0,0.00025,2]
[420916706,1776721834290,-248.0,0.00025,2]
[420916707,1776721834299,-466.0,0.00025,2]
[420916708,1776721834308,-550.0,0.00025,2]
[420916709,1776721834318,-500.0,0.00025099,2]
[420916710,1776721834328,-150.17,0.00025233,2]
[420916711,1776721834337,-185.93606299,0.00025344,2]
[420916712,1776721834347,-505.0,0.00025616,12]
[420916713,1776721834356,-150.0,0.0002589,2]
[420916714,1776721834366,-2500.0,0.00026089,2]
[420916715,1776721834376,-307.0,0.000261,2]
[420916716,1776721834386,-1000.0,0.000261,2]
[420916717,1776721834396,-313.0,0.000261,2]
[420916718,1776721834406,-1993.38197767,0.00026189,12]
[420916719,1776721834424,-398.43626984,0.00026189,12]
[420916720,1776721834440,-27.28575249,0.00026189,12]
[420916721,1776721834449,-184.843,0.00026189,12]
[420916722,1776721834459,-178.07,0.00026376,2]
[420916723,1776721834469,-185.93606299,0.00026433,2]
[420916724,1776721834478,-502.19929347,0.00027,4]
[420916725,1776721834488,-231.12350923,0.00027,2]
[420916726,1776721834501,-368.87649077,0.00027,2]
[420916727,1776721834510,-260.0,0.0002701,8]
[420916728,1776721834520,-150.0,0.00027185,2]
[420916729,1776721834529,-1660.28,0.000272,2]
[420916730,1776721834539,-830.14,0.000272,2]
[420916731,1776721834548,-505.0,0.00027316,13]
[420916732,1776721834559,-500.0,0.00027341,2]
[420916733,1776721834568,-500.0,0.00027396,2]
[420916734,1776721834578,-224.2,0.00027397,2]
[420916735,1776721834588,-406.6995838,0.00027397,2]
[420916736,1776721834597,-1395.56059164,0.00027397,10]
[420916737,1776721834610,-447.6126523,0.00027397,10]
[420916738,1776721834626,-12307.82282015,0.00027397,10]
[420916739,1776721834638,-4934.76220405,0.00027397,10]
[420916740,1776721834651,-1226.08351096,0.00027397,10]
[420916741,1776721834663,-716.88532856,0.00027397,10]
[420916742,1776721834675,-8284.85289234,0.00027397,10]
[420916743,1776721834685,-185.93606299,0.00027522,2]
[420916744,1776721834695,-500.0,0.00028048,120]
[420916745,1776721834704,-500.0,0.00028048,120]
[420916746,1776721834714,-1600.33,0.000283,14]
[420916747,1776721834727,-1600.33,0.000285,10]
[420916748,1776721834737,-150.0,0.00028544,2]
[420916749,1776721834747,-248.02,0.00028571,2]
[420916750,1776721834760,-350.0,0.00028602,2]
[420916751,1776721834771,-185.93606299,0.00028611,2]
[420916752,1776721834781,-2568.89,0.00028611,2]
[420916753,1776721834790,-500.0,0.00028733,120]
[420916754,1776721834800,-200.0,0.0002879,7]
[420916755,1776721834809,-1660.28,0.000288,2]
[420916756,1776721834819,-830.14,0.000288,2]
[420916757,1776721834828,-84.11880706,0.00028906,2]
[420916758,1776721834860,-892.62471101,0.00028906,2]
[420916759,1776721834870,-505.0,0.00029015,15]
[420916760,1776721834879,-384.76263669,0.00029041,120]
[420916829,1776721840164,-151.0,0.00011119,2]
[420916830,1776721840174,-275.61846658,0.000209,2]
[420916831,1776721840189,-2224.38153342,0.000209,2]
[420916832,1776721840199,-305.0,0.00027397,5]
[420916833,1776721840208,-507.0,0.00029041,10]
[420916834,1776721840218,-595.0,0.00029041,10]
[420916835,1776721840228,-870.0,0.00029041,10]
[420916836,1776721840237,-1059.23736331,0.00029041,120]
[420916837,1776721840247,-350.0,0.0002907,2]
[420916838,1776721840257,-260.0,0.00029199,12]
[420916839,1776721840266,-6617.35166589,0.00029334,2]
[420916840,1776721840276,-509.39,0.00029409,2]
[420916841,1776721840286,-6127.74000747,0.0002951,2]
[420916842,1776721840295,-500.0,0.00029562,3]
[420916843,1776721840305,-200.0,0.00029562,2]
[420916844,1776721840315,-5000.0,0.0002958,2]
[420916845,1776721840324,-180.94561325,0.0002958,2]
[420916846,1776721840334,-180.94561319,0.00029597,2]
[420916847,1776721840343,-1600.33,0.000296,15]
[420916848,1776721840353,-250.0,0.00029605,14]
[420916849,1776721840363,-250.0,0.00029605,14]
[420916850,1776721840373,-180.94561319,0.00029614,2]
[420916851,1776721840383,-500.0,0.00029637,120]
[420916852,1776721840392,-463.66403928,0.0002967,2]
[420916853,1776721840404,-22962.95176402,0.0002967,2]
[420916854,1776721840414,-200.0,0.00029673,5]
[420916855,1776721840424,-151.0,0.00029677,7]
[420916856,1776721840433,-150.0,0.00029679,20]
[420916857,1776721840443,-500.0,0.00029679,120]
[420916858,1776721840452,-500.0,0.00029679,120]
[420916859,1776721840462,-500.0,0.00029679,120]
[420916860,1776721840471,-500.0,0.00029679,120]
[420916861,1776721840480,-500.0,0.00029679,120]
[420916862,1776721840489,-500.0,0.00029679,120]
[420916863,1776721840499,-391.0,0.0002968,5]
[420916864,1776721840508,-22138.53256565,0.0002968,2]
[420916865,1776721840520,-1826.1386616,0.0002968,2]
[420916866,1776721840540,-165.01,0.0002738,2]
[420916867,1776721840550,-5695.99,0.0002968,2]
[420916868,1776721840806,-401.19255873,0.0002968,2]
[420916869,1776721840818,-1414.65637329,0.0002968,2]
[420916870,1776721840829,-3984.22621312,0.0002968,2]
[420916871,1776721840841,-372.34049029,0.0002968,2]
[420916872,1776721840875,-546.0,0.00029605,10]
[420916873,1776721840885,-355.0,0.00029605,10]
[420916874,1776721840895,-801.0,0.00029605,10]
[420916875,1776721840904,-421062.40386686,0.0002968,2]
[420916876,1776721840919,-670.43966118,0.0002968,2]
[420916877,1776721840930,-1407.38003316,0.0002968,2]
[420916878,1776721840942,-276.99747719,0.0002968,2]
[420916887,1776721847173,-2176.0,0.00018623,2]
[420916888,1776721847183,-180.94561319,0.00029631,2]
[420916889,1776721847192,-16442.33631566,0.0002968,2]
[420916890,1776721889439,-424.0,0.0002,2]
[420916891,1776721889449,-174.06998202,0.0002958,2]
[420916892,1776721889459,-161.17001798,0.0002968,2]
[420916893,1776721889471,-250.44,0.0002968,2]
[420916894,1776721889483,-49142.16720183,0.0002968,2]
[420916896,1776722008725,163.5,8.22e-05,2]
[420916897,1776722072469,150.0,8.22e-05,2]
[420916898,1776722138794,153.18,8.22e-05,2]
[420916899,1776722268516,150.0,8.22e-05,2]
[420916901,1776722332362,150.0,8.22e-05,2]
[420916902,1776722458982,150.0,8.22e-05,2]
[420916903,1776722585283,150.0,8.22e-05,2]
[420916904,1776722685521,-257.0,8.266e-05,2]
[420916905,1776722685548,-212.29,8.266e-05,2]
[420916906,1776722685574,-35530.71,8.272e-05,2]
[420916907,1776722714768,150.0,8.22e-05,2]
[420916909,1776722777876,-781.4398,8.272e-05,2]
[420916910,1776722777904,-1113.44470687,8.274e-05,2]
[420916911,1776722777931,-105.11549313,8.276e-05,2]
[420916913,1776722818008,-194.88450687,8.276e-05,2]
[420916914,1776722818035,-250.0,8.276e-05,2]
[420916915,1776722818061,-155.11549313,8.279e-05,2]
[420916916,1776722826167,1838.462226,8.178e-05,2]
[420916917,1776722909513,150.0,8.22e-05,2]
[420916918,1776722965465,-164.0,8.272e-05,2]
[420916919,1776722965490,-7650.664,8.272e-05,2]
[420916920,1776722965515,-57.17450687,8.279e-05,2]
[420916921,1776722965543,-265.37,8.305e-05,2]
[420916922,1776722965568,-300.0,8.318e-05,2]
[420916923,1776722965592,-300.0,8.319e-05,2]
[420916924,1776722965617,-300.0,8.319e-05,2]
[420916925,1776722965641,-300.0,8.319e-05,2]
[420916926,1776722965666,-300.0,8.37e-05,2]
[420916927,1776722965691,-300.0,8.37e-05,2]
[420916928,1776722965716,-1200.0,8.37e-05,2]
[420916929,1776722965741,-150.0,8.37e-05,2]
[420916930,1776722965765,-1000.0,8.371e-05,2]
[420916931,1776722965789,-214.73,8.371e-05,2]
[420916932,1776722965821,-500.0,8.371e-05,2]
[420916933,1776722965851,-500.0,8.371e-05,2]
[420916934,1776722965882,-500.0,8.371e-05,2]
[420916935,1776722965913,-500.0,8.371e-05,2]
[420916936,1776722965945,-500.0,8.371e-05,2]
[420916937,1776722965977,-500.0,8.371e-05,2]
[420916938,1776722966007,-500.0,8.371e-05,2]
[420916939,1776722966039,-500.0,8.371e-05,2]
[420916940,1776722966069,-500.0,8.371e-05,2]
[420916941,1776722966100,-500.0,8.371e-05,2]
[420916942,1776722966130,-500.0,8.371e-05,2]
[420916943,1776722966161,-396.44290282,8.371e-05,2]
[420916944,1776722966191,-500.0,8.371e-05,2]
[420916945,1776722966221,-500.0,8.371e-05,2]
[420916946,1776722966251,-500.0,8.371e-05,2]
[420916947,1776722966281,-500.0,8.371e-05,2]
[420916948,1776722966312,-500.0,8.371e-05,2]
[420916949,1776722966335,-310.90757129,8.371e-05,2]
[420916950,1776722966360,-585.79108621,8.371e-05,2]
[420916951,1776722966389,-17859.91993281,8.372e-05,2]
[420916952,1776722983717,150.0,8.22e-05,2]
[420916954,1776723032352,-1200.0,8.271e-05,2]
[420916955,1776723032362,-300.0,8.271e-05,2]
[420916956,1776723032371,-300.0,8.271e-05,2]
[420916957,1776723032380,-495.0,8.272e-05,2]
[420916958,1776723032510,-5361.16495616,8.272e-05,2]
[420916959,1776723032521,-13225.43526591,8.272e-05,2]
[420916960,1776723032533,-1466.46,8.272e-05,2]
[420916961,1776723032635,-2193.85807793,8.272e-05,2]
[420916962,1776723032645,-150.0,8.5e-05,2]
[420916963,1776723032655,-153.78868189,8.52e-05,2]
[420916964,1776723032664,-150.0,8.52e-05,2]
[420916965,1776723032674,-271.0,8.717e-05,2]
[420916966,1776723032684,-150.0,8.82e-05,2]
[420916967,1776723032693,-194.6,8.82e-05,2]
[420916968,1776723032703,-28357.9269,8.827e-05,2]
[420916969,1776723032712,-150.0,8.927e-05,2]
[420916970,1776723032722,-300.0,9.098e-05,2]
[420916971,1776723032731,-420.0,9.098e-05,2]
[420916972,1776723032741,-1680.0,9.098e-05,2]
[420916973,1776723032750,-5000.0,9.099e-05,2]
[420916974,1776723032759,-250.0,9.099e-05,2]
[420916975,1776723032769,-300.0,9.107e-05,2]
[420916976,1776723032778,-5000.0,9.107e-05,2]
[420916978,1776723032788,-250.0,9.107e-05,2]
[420916980,1776723032798,-420.0,9.15e-05,2]
[420916982,1776723032808,-500.0,9.19e-05,2]
[420916984,1776723032817,-500.0,9.19e-05,2]
[420916986,1776723032826,-609.95408242,9.19e-05,2]
[420916988,1776723032836,-500.0,9.19e-05,2]
[420916990,1776723032845,-255.0,9.207e-05,2]
[420916992,1776723032854,-500.0,9.219e-05,2]
[420916993,1776723032864,-1600.0,9.264e-05,2]
[420916994,1776723032875,-611.81980635,9.457e-05,2]
[420916995,1776723032884,-260.0,9.863e-05,2]
[420916996,1776723032893,-151.0,0.0001,2]
[420916997,1776723032903,-151.0,0.0001,2]
[420916998,1776723032913,-151.0,0.0001,2]
[420916999,1776723032923,-151.0,0.0001,2]
[420917000,1776723032933,-151.0,0.0001,2]
[420917001,1776723032943,-151.0,0.0001,2]
[420917002,1776723032952,-151.0,0.0001,2]
[420917003,1776723032962,-151.0,0.0001,2]
[420917004,1776723032972,-151.0,0.0001,2]
[420917005,1776723032981,-151.0,0.0001,2]
[420917006,1776723032991,-151.0,0.0001,2]
[420917007,1776723033000,-151.0,0.0001,2]
[420917008,1776723033016,-151.0,0.0001,2]
[420917009,1776723033025,-151.0,0.0001,2]
[420917010,1776723033035,-151.0,0.0001,2]
[420917011,1776723033045,-151.0,0.0001,2]
[420917012,1776723033055,-151.0,0.0001,2]
[420917013,1776723033064,-289.28670008,0.0001,2]
[420917014,1776723033074,-500.0,0.0001,2]
[420917015,1776723033084,-500.0,0.0001,2]
[420917016,1776723033094,-500.0,0.0001,2]
[420917017,1776723033103,-500.0,0.0001,2]
[420917018,1776723033112,-500.0,0.0001,2]
[420917019,1776723033122,-500.0,0.0001,2]
[420917020,1776723033131,-500.0,0.0001,2]
[420917021,1776723033141,-500.0,0.0001,2]
[420917022,1776723033151,-2351.0,0.00010008,2]
[420917023,1776723033160,-587.0,0.00010065,2]
[420917024,1776723033170,-880.32,0.00010082,2]
[420917025,1776723033180,-238.41022199,0.000101,2]
[420917026,1776723033189,-433.0,0.00010128,2]
[420917027,1776723033199,-162.7505,0.00010333,2]
[420917028,1776723033209,-1600.0,0.00010422,2]
[420917029,1776723033218,-2500.0,0.0001053,2]
[420917030,1776723033228,-27583.97177997,0.000107,2]
[420917031,1776723033237,-151.0,0.00010753,2]
[420917032,1776723033247,-151.0,0.00010761,2]
[420917033,1776723033256,-151.0,0.00010788,2]
[420917034,1776723033265,-151.0,0.00010789,2]
[420917035,1776723033275,-3292.0,0.00011009,2]
[420917036,1776723033284,-185.93606299,0.00011099,2]
[420917037,1776723033294,-275.0,0.00011141,2]
[420917038,1776723033303,-1600.0,0.0001158,2]
[420917039,1776723033313,-158.32741161,0.00011899,2]
[420917040,1776723033323,-172.26195554,0.000119,2]
[420917041,1776723033332,-221.29849978,0.000119,2]
[420917042,1776723033342,-216.8794839,0.000119,2]
[420917043,1776723033352,-208.95419416,0.000119,2]
[420917044,1776723033362,-17985.58643414,0.00012,2]
[420917045,1776723033376,-5792.12889836,0.00012,2]
[420917046,1776723035440,-969.80549567,0.00012,2]
[420917047,1776723038517,-500.0,0.0001,2]
[420917048,1776723038527,-47.4565743,0.00012,2]
[420917049,1776723038677,-563.54826004,0.00012,2]
[420917050,1776723038693,-8460.0,0.00012,2]
[420917051,1776723038707,-2528.48506424,0.00012,2]
[420917052,1776723038897,-75749.36394568,0.00012,2]
[420917053,1776723038909,-48993.48432967,0.00012,2]
[420917054,1776723038920,-1826.1386616,0.00012,2]
[420917055,1776723038931,-2963.14435615,0.00012,2]
[420917077,1776723040535,-305.11934148,0.00012,2]
[420917078,1776723040593,-28721.943405,0.00012,2]
[420917079,1776723040911,-1893.198547,0.00012,2]
[420917080,1776723040923,-10874.03214022,0.00012,2]
[420917081,1776723040935,-19081.12410002,0.00012,2]
[420917082,1776723040947,-8994.11514348,0.00012,2]
[420917083,1776723040958,-705.60285014,0.00012,2]
[420917084,1776723041071,-338.004,0.00012,2]
[420917104,1776723043532,-372.27914492,0.00012,2]
[420917105,1776723043543,-2121.80929683,0.00012,2]
[420917106,1776723043588,-694001.16239279,0.00012,2]
[420917107,1776723043599,-2681.24548,0.00012,2]
[420917108,1776723043610,-1074.71085508,0.00012,2]
[420917109,1776723043699,-1265.91989,0.00012,2]
[420917110,1776723043710,-1170.93220589,0.00012,2]
[420917116,1776723047218,-11546.86014265,0.00012,2]